[Event "Late-Titled-Tuesday-Blitz-August-29-2023"]
[Site "Chess.com"]
[Date "2023.08.29"]
[Round "8"]
[White "jaskol95"]
[Black "Sinquefield"]
[Result "0-1"]
[WhiteElo "2570"]
[BlackElo "2456"]
[TimeControl "180+1"]
[EndTime "15:28:36 PDT"]
[Termination "Sinquefield won by checkmate"]

1. e4 {[%clk 0:03:00.9]} 1... e6 {[%clk 0:02:55.7]} 2. Nf3 {[%clk 0:02:59]} 2...
d5 {[%clk 0:02:56.6]} 3. e5 {[%clk 0:02:58]} 3... c5 {[%clk 0:02:56.2]} 4. b4
{[%clk 0:02:56.7]} 4... d4 {[%clk 0:02:48]} 5. bxc5 {[%clk 0:02:51.6]} 5... Bxc5
{[%clk 0:02:45.7]} 6. Bd3 {[%clk 0:02:52.3]} 6... Nc6 {[%clk 0:02:44.8]} 7. c3
{[%clk 0:02:47.5]} 7... Nge7 {[%clk 0:02:24.4]} 8. O-O {[%clk 0:02:46.3]} 8...
Ng6 {[%clk 0:02:21.1]} 9. cxd4 {[%clk 0:02:35.4]} 9... Nxd4 {[%clk 0:02:18.1]}
10. Nxd4 {[%clk 0:02:27.1]} 10... Qxd4 {[%clk 0:02:19]} 11. Bb5+ {[%clk
0:02:26.6]} 11... Bd7 {[%clk 0:02:08.1]} 12. Bxd7+ {[%clk 0:02:21.8]} 12... Qxd7
{[%clk 0:02:08.6]} 13. Bb2 {[%clk 0:02:16.5]} 13... O-O {[%clk 0:02:03.8]} 14.
d4 {[%clk 0:02:14.6]} 14... Rfd8 {[%clk 0:01:59.1]} 15. Qb3 {[%clk 0:01:52.7]}
15... Bxd4 {[%clk 0:01:57.5]} 16. Bxd4 {[%clk 0:01:49.2]} 16... Qxd4 {[%clk
0:01:57]} 17. Nc3 {[%clk 0:01:48.5]} 17... Qxe5 {[%clk 0:01:53.8]} 18. Rfe1
{[%clk 0:01:45.2]} 18... Qf6 {[%clk 0:01:52]} 19. Ne4 {[%clk 0:01:43.8]} 19...
Qe7 {[%clk 0:01:49.2]} 20. g3 {[%clk 0:01:41.4]} 20... b6 {[%clk 0:01:47.9]} 21.
h4 {[%clk 0:01:41.3]} 21... Rac8 {[%clk 0:01:46.7]} 22. h5 {[%clk 0:01:36.8]}
22... Nf8 {[%clk 0:01:36.7]} 23. h6 {[%clk 0:01:37.1]} 23... gxh6 {[%clk
0:01:29.1]} 24. Qb2 {[%clk 0:01:25.1]} 24... f5 {[%clk 0:01:21.8]} 25. Nf6+
{[%clk 0:01:21.4]} 25... Kf7 {[%clk 0:01:20.9]} 26. Nh5 {[%clk 0:01:21.8]} 26...
Qg5 {[%clk 0:01:08.9]} 27. Nf4 {[%clk 0:01:15]} 27... Rc4 {[%clk 0:01:03]} 28.
Qe5 {[%clk 0:00:41.7]} 28... Qf6 {[%clk 0:00:29]} 29. Qe2 {[%clk 0:00:36.5]}
29... Re4 {[%clk 0:00:26.8]} 30. Qh5+ {[%clk 0:00:34.4]} 30... Kg8 {[%clk
0:00:23.4]} 31. Rec1 {[%clk 0:00:29.1]} 31... Ng6 {[%clk 0:00:19]} 32. Ng2
{[%clk 0:00:22]} 32... f4 {[%clk 0:00:11.8]} 33. Qf3 {[%clk 0:00:20.6]} 33...
Red4 {[%clk 0:00:08.5]} 34. Re1 {[%clk 0:00:17.3]} 34... Rd3 {[%clk 0:00:07.8]}
35. Ne3 {[%clk 0:00:08.9]} 35... Qg7 {[%clk 0:00:05.2]} 36. Qe4 {[%clk
0:00:04.4]} 36... fxe3 {[%clk 0:00:05.4]} 37. Qxe6+ {[%clk 0:00:04.9]} 37... Qf7
{[%clk 0:00:05.1]} 38. Qxf7+ {[%clk 0:00:04.9]} 38... Kxf7 {[%clk 0:00:05.4]}
39. fxe3 {[%clk 0:00:05.6]} 39... Rd2 {[%clk 0:00:05.4]} 40. Rf1+ {[%clk
0:00:06]} 40... Kg7 {[%clk 0:00:06]} 41. Rf3 {[%clk 0:00:06.5]} 41... Rc2 {[%clk
0:00:06]} 42. Raf1 {[%clk 0:00:07.1]} 42... Rd7 {[%clk 0:00:06.6]} 43. e4 {[%clk
0:00:06.2]} 43... h5 {[%clk 0:00:07]} 44. Rf5 {[%clk 0:00:06.7]} 44... Rdd2
{[%clk 0:00:06.9]} 45. R1f3 {[%clk 0:00:04.9]} 45... Rg2+ {[%clk 0:00:06.3]} 46.
Kh1 {[%clk 0:00:04.6]} 46... Rh2+ {[%clk 0:00:07.2]} 47. Kg1 {[%clk 0:00:05.1]}
47... h4 {[%clk 0:00:07.4]} 48. gxh4 {[%clk 0:00:04.7]} 48... Rcg2+ {[%clk
0:00:07.8]} 49. Kf1 {[%clk 0:00:04.7]} 49... Nxh4 {[%clk 0:00:08.2]} 50. Rf7+
{[%clk 0:00:05.3]} 50... Kg6 {[%clk 0:00:08.3]} 51. R3f6+ {[%clk 0:00:05.8]}
51... Kg5 {[%clk 0:00:08.3]} 52. Rf5+ {[%clk 0:00:03.8]} 52... Nxf5 {[%clk
0:00:08.3]} 53. Rxf5+ {[%clk 0:00:04.6]} 53... Kg4 {[%clk 0:00:08.9]} 54. Rf7
{[%clk 0:00:04.6]} 54... Kh3 {[%clk 0:00:08.9]} 55. Rxh7+ {[%clk 0:00:04.7]}
55... Kg3 {[%clk 0:00:09.5]} 56. Rg7+ {[%clk 0:00:05.3]} 56... Kf3 {[%clk
0:00:10.2]} 57. Rf7+ {[%clk 0:00:05.6]} 57... Ke3 {[%clk 0:00:10.7]} 58. e5
{[%clk 0:00:05.2]} 58... Rxa2 {[%clk 0:00:10.8]} 59. Kg1 {[%clk 0:00:04.6]}
59... Rag2+ {[%clk 0:00:10.6]} 60. Kf1 {[%clk 0:00:05.1]} 60... Rf2+ {[%clk
0:00:11.5]} 61. Kg1 {[%clk 0:00:05.6]} 61... Rxf7 {[%clk 0:00:11.5]} 62. e6
{[%clk 0:00:06.5]} 62... Re7 {[%clk 0:00:12.2]} 63. Kxh2 {[%clk 0:00:06.3]}
63... Rxe6 {[%clk 0:00:12.8]} 64. Kg3 {[%clk 0:00:07.2]} 64... Rf6 {[%clk
0:00:13.4]} 65. Kg2 {[%clk 0:00:08.1]} 65... Rf3 {[%clk 0:00:13.9]} 66. Kg1
{[%clk 0:00:08.5]} 66... b5 {[%clk 0:00:14.8]} 67. Kg2 {[%clk 0:00:09.2]} 67...
b4 {[%clk 0:00:15.7]} 68. Kh2 {[%clk 0:00:09.8]} 68... b3 {[%clk 0:00:16.6]} 69.
Kg2 {[%clk 0:00:10.7]} 69... b2 {[%clk 0:00:17.5]} 70. Kh2 {[%clk 0:00:11.6]}
70... a5 {[%clk 0:00:18.4]} 71. Kg2 {[%clk 0:00:12.5]} 71... a4 {[%clk
0:00:19.3]} 72. Kh2 {[%clk 0:00:13.1]} 72... a3 {[%clk 0:00:20.2]} 73. Kg2
{[%clk 0:00:14]} 73... a2 {[%clk 0:00:21.1]} 74. Kh2 {[%clk 0:00:14.9]} 74...
Rf4 {[%clk 0:00:22]} 75. Kg2 {[%clk 0:00:15.8]} 75... Rb4 {[%clk 0:00:22.9]} 76.
Kh2 {[%clk 0:00:16.7]} 76... Rb3 {[%clk 0:00:23.8]} 77. Kg2 {[%clk 0:00:17.6]}
77... Kd3 {[%clk 0:00:24.7]} 78. Kh2 {[%clk 0:00:18.5]} 78... Kc3 {[%clk
0:00:25.6]} 79. Kg2 {[%clk 0:00:19.4]} 79... Kb4 {[%clk 0:00:26.4]} 80. Kh2
{[%clk 0:00:20.3]} 80... Ka3 {[%clk 0:00:27.3]} 81. Kg2 {[%clk 0:00:21.2]} 81...
a1=Q {[%clk 0:00:27.2]} 82. Kh2 {[%clk 0:00:22.1]} 82... b1=Q {[%clk 0:00:26.9]}
83. Kg2 {[%clk 0:00:23]} 83... Ka4 {[%clk 0:00:24.3]} 84. Kh2 {[%clk 0:00:23.9]}
84... Ka5 {[%clk 0:00:25.2]} 85. Kg2 {[%clk 0:00:24.8]} 85... Ka6 {[%clk
0:00:25.7]} 86. Kh2 {[%clk 0:00:25.7]} 86... Ka7 {[%clk 0:00:26.1]} 87. Kg2
{[%clk 0:00:26.6]} 87... Qaa2# {[%clk 0:00:26.7]} 0-1

[Event "Late-Titled-Tuesday-Blitz-August-29-2023"]
[Site "Chess.com"]
[Date "2023.08.29"]
[Round "8"]
[White "dosto07"]
[Black "js20000"]
[Result "1/2-1/2"]
[WhiteElo "2515"]
[BlackElo "2640"]
[TimeControl "180+1"]
[EndTime "15:28:37 PDT"]
[Termination "Game drawn by repetition"]

1. e4 {[%clk 0:03:00.9]} 1... Nc6 {[%clk 0:03:00.9]} 2. Nf3 {[%clk 0:02:59.9]}
2... e6 {[%clk 0:02:58.9]} 3. d4 {[%clk 0:02:57]} 3... d5 {[%clk 0:02:59.8]} 4.
e5 {[%clk 0:02:52]} 4... f6 {[%clk 0:02:58.3]} 5. exf6 {[%clk 0:02:51.8]} 5...
Nxf6 {[%clk 0:02:59.2]} 6. Bb5 {[%clk 0:02:49.2]} 6... Bd6 {[%clk 0:02:58.2]} 7.
O-O {[%clk 0:02:42.3]} 7... O-O {[%clk 0:02:58]} 8. Bxc6 {[%clk 0:02:38.6]} 8...
bxc6 {[%clk 0:02:58.9]} 9. b3 {[%clk 0:02:39]} 9... Ne4 {[%clk 0:02:52.3]} 10.
Ba3 {[%clk 0:02:36.7]} 10... Qf6 {[%clk 0:02:42.5]} 11. Re1 {[%clk 0:02:21.5]}
11... g5 {[%clk 0:02:36.1]} 12. Qe2 {[%clk 0:01:51.5]} 12... h5 {[%clk
0:02:16.2]} 13. c4 {[%clk 0:01:38.6]} 13... g4 {[%clk 0:02:12.6]} 14. Ne5 {[%clk
0:01:38.7]} 14... c5 {[%clk 0:01:55.6]} 15. cxd5 {[%clk 0:01:33.8]} 15... exd5
{[%clk 0:01:50.8]} 16. Nd2 {[%clk 0:01:29.2]} 16... cxd4 {[%clk 0:01:34.8]} 17.
Nec4 {[%clk 0:01:10.2]} 17... Bxh2+ {[%clk 0:01:25.7]} 18. Kxh2 {[%clk 0:01:07]}
18... Qh4+ {[%clk 0:01:25.7]} 19. Kg1 {[%clk 0:01:07]} 19... Nxf2 {[%clk
0:01:25.6]} 20. Nf3 {[%clk 0:00:54.3]} 20... gxf3 {[%clk 0:01:00.4]} 21. Qxf2
{[%clk 0:00:53.5]} 21... Qxf2+ {[%clk 0:00:58.3]} 22. Kxf2 {[%clk 0:00:53.3]}
22... dxc4 {[%clk 0:00:57.2]} 23. Bxf8 {[%clk 0:00:53.1]} 23... Kxf8 {[%clk
0:00:58.1]} 24. bxc4 {[%clk 0:00:50.6]} 24... fxg2 {[%clk 0:00:58.2]} 25. Kxg2
{[%clk 0:00:44.9]} 25... Bb7+ {[%clk 0:00:58.3]} 26. Kg3 {[%clk 0:00:44.8]}
26... Rd8 {[%clk 0:00:57.5]} 27. Rad1 {[%clk 0:00:40.8]} 27... Kf7 {[%clk
0:00:40.5]} 28. Re5 {[%clk 0:00:40.3]} 28... Kf6 {[%clk 0:00:35.8]} 29. Kf4
{[%clk 0:00:36.6]} 29... d3 {[%clk 0:00:33.5]} 30. Rxh5 {[%clk 0:00:31.5]} 30...
Rd4+ {[%clk 0:00:29.6]} 31. Ke3 {[%clk 0:00:31.5]} 31... Rxc4 {[%clk 0:00:29.7]}
32. Rxd3 {[%clk 0:00:29.4]} 32... Ke6 {[%clk 0:00:19.5]} 33. Rh2 {[%clk
0:00:23.8]} 33... Re4+ {[%clk 0:00:18.4]} 34. Kd2 {[%clk 0:00:23.6]} 34... Re5
{[%clk 0:00:17.2]} 35. Re3 {[%clk 0:00:23.7]} 35... Rxe3 {[%clk 0:00:16.8]} 36.
Kxe3 {[%clk 0:00:24.2]} 36... Kd6 {[%clk 0:00:17.6]} 37. Kd4 {[%clk 0:00:22.4]}
37... c5+ {[%clk 0:00:16.3]} 38. Kc3 {[%clk 0:00:22.7]} 38... Bd5 {[%clk
0:00:15.6]} 39. a3 {[%clk 0:00:21.9]} 39... Kc6 {[%clk 0:00:15.6]} 40. Rh6+
{[%clk 0:00:20.6]} 40... Kb5 {[%clk 0:00:14.7]} 41. Rh7 {[%clk 0:00:19.7]} 41...
a5 {[%clk 0:00:13.4]} 42. Rd7 {[%clk 0:00:17.7]} 42... Bc6 {[%clk 0:00:09.9]}
43. Rc7 {[%clk 0:00:17.3]} 43... a4 {[%clk 0:00:10.3]} 44. Rc8 {[%clk
0:00:16.2]} 44... Bd5 {[%clk 0:00:10.6]} 45. Rb8+ {[%clk 0:00:16]} 45... Kc6
{[%clk 0:00:11.1]} 46. Ra8 {[%clk 0:00:15.4]} 46... Bb3 {[%clk 0:00:11.1]} 47.
Rb8 {[%clk 0:00:14.4]} 47... Kd5 {[%clk 0:00:11.3]} 48. Rf8 {[%clk 0:00:14.5]}
48... Ke5 {[%clk 0:00:11.5]} 49. Rh8 {[%clk 0:00:14.3]} 49... Kd5 {[%clk
0:00:12]} 50. Rh5+ {[%clk 0:00:14.5]} 50... Kd6 {[%clk 0:00:11.2]} 51. Rh6+
{[%clk 0:00:14.1]} 51... Kd5 {[%clk 0:00:11.2]} 52. Rh4 {[%clk 0:00:14.8]} 52...
Kc6 {[%clk 0:00:11.9]} 53. Rh6+ {[%clk 0:00:14.4]} 53... Kb5 {[%clk 0:00:12.3]}
54. Rh8 {[%clk 0:00:13.3]} 54... Kc6 {[%clk 0:00:11.9]} 55. Rb8 {[%clk
0:00:12.1]} 55... Kd5 {[%clk 0:00:11.7]} 56. Rb5 {[%clk 0:00:11.6]} 56... Kc6
{[%clk 0:00:11.7]} 57. Ra5 {[%clk 0:00:11.5]} 57... Kb6 {[%clk 0:00:11.1]} 58.
Ra8 {[%clk 0:00:11.6]} 58... Kb7 {[%clk 0:00:11.4]} 59. Rf8 {[%clk 0:00:11.6]}
59... Kc6 {[%clk 0:00:11.9]} 60. Rf6+ {[%clk 0:00:11.8]} 60... Kd5 {[%clk
0:00:12.3]} 61. Rb6 {[%clk 0:00:10.8]} 61... Bc4 {[%clk 0:00:10.8]} 62. Rb2
{[%clk 0:00:09.3]} 62... Bb3 {[%clk 0:00:10.9]} 63. Rd2+ {[%clk 0:00:09.3]}
63... Kc6 {[%clk 0:00:11.4]} 64. Rd8 {[%clk 0:00:09.8]} 64... Kb5 {[%clk
0:00:11.1]} 65. Rb8+ {[%clk 0:00:09.6]} 65... Kc6 {[%clk 0:00:11.3]} 66. Rc8+
{[%clk 0:00:10.5]} 66... Kb5 {[%clk 0:00:11.3]} 67. Rh8 {[%clk 0:00:10.7]} 67...
Kc6 {[%clk 0:00:11.5]} 68. Rh4 {[%clk 0:00:11.1]} 68... Kb5 {[%clk 0:00:11.5]}
69. Rh2 {[%clk 0:00:11.1]} 69... Kc6 {[%clk 0:00:11.6]} 70. Rb2 {[%clk
0:00:11.6]} 70... Kb5 {[%clk 0:00:11.7]} 71. Rd2 {[%clk 0:00:11.5]} 71... Kc6
{[%clk 0:00:11.9]} 72. Rf2 {[%clk 0:00:11.7]} 72... Kb5 {[%clk 0:00:11.9]} 73.
Rf4 {[%clk 0:00:12.6]} 73... Kc6 {[%clk 0:00:11.9]} 74. Rf2 {[%clk 0:00:12.8]}
74... Kb5 {[%clk 0:00:11.7]} 75. Rh2 {[%clk 0:00:13.7]} 75... Kc6 {[%clk
0:00:11.9]} 76. Rh4 {[%clk 0:00:14.6]} 76... Kb5 {[%clk 0:00:12.1]} 77. Rf4
{[%clk 0:00:15.4]} 77... Kc6 {[%clk 0:00:12.4]} 78. Rf2 {[%clk 0:00:16.3]}
1/2-1/2

[Event "Late-Titled-Tuesday-Blitz-August-29-2023"]
[Site "Chess.com"]
[Date "2023.08.29"]
[Round "8"]
[White "NelsonLinda"]
[Black "MikeSailer"]
[Result "1-0"]
[WhiteElo "2462"]
[BlackElo "2190"]
[TimeControl "180+1"]
[EndTime "15:28:51 PDT"]
[Termination "NelsonLinda won by checkmate"]

1. Nc3 {[%clk 0:02:53]} 1... d5 {[%clk 0:02:54]} 2. d4 {[%clk 0:02:53.2]} 2...
Nf6 {[%clk 0:02:49.9]} 3. Bf4 {[%clk 0:02:52.6]} 3... a6 {[%clk 0:02:47.7]} 4.
e3 {[%clk 0:02:49]} 4... b5 {[%clk 0:02:46.3]} 5. Nf3 {[%clk 0:02:33.9]} 5... e6
{[%clk 0:02:41.2]} 6. Ne5 {[%clk 0:02:33.1]} 6... Bb7 {[%clk 0:02:39.7]} 7. Bd3
{[%clk 0:02:18.2]} 7... Nbd7 {[%clk 0:02:36.7]} 8. g4 {[%clk 0:02:15.5]} 8...
Bd6 {[%clk 0:02:09.9]} 9. Nxd7 {[%clk 0:02:05.1]} 9... Qxd7 {[%clk 0:02:03.8]}
10. g5 {[%clk 0:02:01.6]} 10... Ne4 {[%clk 0:01:49]} 11. Ne2 {[%clk 0:01:52]}
11... Bxf4 {[%clk 0:01:38.4]} 12. exf4 {[%clk 0:01:52.9]} 12... Nd6 {[%clk
0:01:28.4]} 13. h4 {[%clk 0:01:47.4]} 13... Nf5 {[%clk 0:01:14.7]} 14. Bxf5
{[%clk 0:01:45.9]} 14... exf5 {[%clk 0:01:14.8]} 15. Qd3 {[%clk 0:01:38.2]}
15... O-O-O {[%clk 0:01:12.8]} 16. O-O-O {[%clk 0:01:37.9]} 16... Rhe8 {[%clk
0:01:13.7]} 17. Ng3 {[%clk 0:01:37.4]} 17... g6 {[%clk 0:01:11.4]} 18. h5 {[%clk
0:01:37.1]} 18... Kb8 {[%clk 0:00:58.8]} 19. Rhe1 {[%clk 0:01:14.6]} 19... Re6
{[%clk 0:00:49.9]} 20. Re5 {[%clk 0:01:10.6]} 20... Rde8 {[%clk 0:00:47.5]} 21.
Rde1 {[%clk 0:01:10.3]} 21... Rxe5 {[%clk 0:00:45.2]} 22. fxe5 {[%clk
0:01:04.9]} 22... f4 {[%clk 0:00:34.4]} 23. Ne2 {[%clk 0:00:50.4]} 23... Qg4
{[%clk 0:00:26.5]} 24. hxg6 {[%clk 0:00:50.4]} 24... hxg6 {[%clk 0:00:23.2]} 25.
Rg1 {[%clk 0:00:48.4]} 25... Qh4 {[%clk 0:00:16]} 26. Qf3 {[%clk 0:00:45.8]}
26... Bc8 {[%clk 0:00:06.2]} 27. Nxf4 {[%clk 0:00:34.8]} 27... Bf5 {[%clk
0:00:04.9]} 28. c3 {[%clk 0:00:26.3]} 28... c6 {[%clk 0:00:04.9]} 29. Qg3 {[%clk
0:00:20]} 29... Qh8 {[%clk 0:00:03.9]} 30. Ne2 {[%clk 0:00:14]} 30... Qf8 {[%clk
0:00:04.3]} 31. Qe3 {[%clk 0:00:10.9]} 31... b4 {[%clk 0:00:04]} 32. Ng3 {[%clk
0:00:10.6]} 32... bxc3 {[%clk 0:00:04.3]} 33. Qxc3 {[%clk 0:00:11.5]} 33... Kc7
{[%clk 0:00:02.4]} 34. Kd2 {[%clk 0:00:09]} 34... Rb8 {[%clk 0:00:02.7]} 35. a3
{[%clk 0:00:08.1]} 35... Rb7 {[%clk 0:00:01.3]} 36. Rc1 {[%clk 0:00:08.1]} 36...
Kb8 {[%clk 0:00:02]} 37. b4 {[%clk 0:00:07.4]} 37... Bd7 {[%clk 0:00:01.2]} 38.
Ne2 {[%clk 0:00:05.4]} 38... Qh8 {[%clk 0:00:02]} 39. Qg3 {[%clk 0:00:04.9]}
39... Qh5 {[%clk 0:00:01.9]} 40. Rc5 {[%clk 0:00:04.5]} 40... Be8 {[%clk
0:00:01.7]} 41. Nc3 {[%clk 0:00:04.5]} 41... Re7 {[%clk 0:00:02.1]} 42. Na4
{[%clk 0:00:04.5]} 42... Qh1 {[%clk 0:00:03]} 43. Rc1 {[%clk 0:00:04.4]} 43...
Qh5 {[%clk 0:00:02.9]} 44. Qe3 {[%clk 0:00:04.4]} 44... Qh2 {[%clk 0:00:03.2]}
45. Nc5 {[%clk 0:00:04.9]} 45... Qg2 {[%clk 0:00:03.2]} 46. Nxa6+ {[%clk
0:00:05]} 46... Kb7 {[%clk 0:00:03.7]} 47. Nc5+ {[%clk 0:00:05.4]} 47... Kc8
{[%clk 0:00:03.8]} 48. Nd3 {[%clk 0:00:06]} 48... Bd7 {[%clk 0:00:04.5]} 49. Nf4
{[%clk 0:00:06.5]} 49... Qh2 {[%clk 0:00:04.6]} 50. Nxd5 {[%clk 0:00:06.9]}
50... Re8 {[%clk 0:00:03.9]} 51. Nb6+ {[%clk 0:00:05.3]} 51... Kc7 {[%clk
0:00:04.1]} 52. Nxd7 {[%clk 0:00:04.8]} 52... Kxd7 {[%clk 0:00:05]} 53. Rc5
{[%clk 0:00:03.2]} 53... Re6 {[%clk 0:00:05.3]} 54. Rc3 {[%clk 0:00:03.3]} 54...
Qh1 {[%clk 0:00:05.4]} 55. Qf3 {[%clk 0:00:03.5]} 55... Qa1 {[%clk 0:00:05.3]}
56. Qxc6+ {[%clk 0:00:03.6]} 56... Ke7 {[%clk 0:00:04.9]} 57. Qc7+ {[%clk
0:00:02.8]} 57... Ke8 {[%clk 0:00:04.9]} 58. Qc4 {[%clk 0:00:03.4]} 58... Qb2+
{[%clk 0:00:04.4]} 59. Rc2 {[%clk 0:00:03.7]} 59... Qb1 {[%clk 0:00:04.7]} 60.
Qc8+ {[%clk 0:00:03.7]} 60... Ke7 {[%clk 0:00:04.7]} 61. Rc7# {[%clk 0:00:04.1]}
1-0

[Event "Late-Titled-Tuesday-Blitz-August-29-2023"]
[Site "Chess.com"]
[Date "2023.08.29"]
[Round "8"]
[White "EsmeraldasAnderson03"]
[Black "bascheyaro"]
[Result "1-0"]
[WhiteElo "2436"]
[BlackElo "2812"]
[TimeControl "180+1"]
[EndTime "15:29:00 PDT"]
[Termination "EsmeraldasAnderson03 won on time"]

1. d4 {[%clk 0:03:00]} 1... d5 {[%clk 0:03:00.2]} 2. Nf3 {[%clk 0:02:59.5]} 2...
Nf6 {[%clk 0:03:00.3]} 3. c4 {[%clk 0:03:00.2]} 3... c6 {[%clk 0:03:00.8]} 4.
cxd5 {[%clk 0:03:00.3]} 4... cxd5 {[%clk 0:03:01.3]} 5. Nc3 {[%clk 0:03:01.1]}
5... Nc6 {[%clk 0:03:01.4]} 6. Bf4 {[%clk 0:03:01.6]} 6... a6 {[%clk 0:03:01.6]}
7. e3 {[%clk 0:03:02]} 7... g6 {[%clk 0:03:01.4]} 8. Rc1 {[%clk 0:03:02.2]} 8...
Bg7 {[%clk 0:03:01.9]} 9. Be2 {[%clk 0:03:02]} 9... O-O {[%clk 0:03:02.1]} 10.
O-O {[%clk 0:03:02.6]} 10... h6 {[%clk 0:03:00.6]} 11. h3 {[%clk 0:03:02.1]}
11... e6 {[%clk 0:02:58.7]} 12. a3 {[%clk 0:02:59.8]} 12... Bd7 {[%clk
0:02:58.5]} 13. Na4 {[%clk 0:02:56.6]} 13... Ne4 {[%clk 0:02:56.2]} 14. Nd2
{[%clk 0:02:54.3]} 14... Nxd2 {[%clk 0:02:52.7]} 15. Qxd2 {[%clk 0:02:54.7]}
15... g5 {[%clk 0:02:30.1]} 16. Bd6 {[%clk 0:02:52.2]} 16... Re8 {[%clk
0:02:29.2]} 17. Nc5 {[%clk 0:02:51.8]} 17... Na5 {[%clk 0:02:12.4]} 18. b4
{[%clk 0:02:44.4]} 18... Bb5 {[%clk 0:01:57.4]} 19. bxa5 {[%clk 0:02:35.1]}
19... Qxd6 {[%clk 0:01:56]} 20. Nxb7 {[%clk 0:02:23]} 20... Qxa3 {[%clk
0:01:55.5]} 21. Ra1 {[%clk 0:02:22.6]} 21... Qe7 {[%clk 0:01:50.6]} 22. Bxb5
{[%clk 0:02:22.4]} 22... axb5 {[%clk 0:01:50]} 23. a6 {[%clk 0:02:10.4]} 23...
Ra7 {[%clk 0:01:46.8]} 24. Qa5 {[%clk 0:02:08.6]} 24... b4 {[%clk 0:01:45.9]}
25. Nc5 {[%clk 0:02:04.1]} 25... Rb8 {[%clk 0:01:45.3]} 26. Rfb1 {[%clk
0:02:04.7]} 26... Qc7 {[%clk 0:01:22.5]} 27. Qxc7 {[%clk 0:02:00.1]} 27... Rxc7
{[%clk 0:01:23.4]} 28. Ra4 {[%clk 0:01:57]} 28... b3 {[%clk 0:01:14.2]} 29. Rxb3
{[%clk 0:01:54.8]} 29... Ra8 {[%clk 0:01:12.6]} 30. Rb7 {[%clk 0:01:51.3]} 30...
Rcc8 {[%clk 0:01:10.2]} 31. g4 {[%clk 0:01:37.6]} 31... Bf8 {[%clk 0:01:02.6]}
32. Nd7 {[%clk 0:01:37.8]} 32... Rc4 {[%clk 0:00:47.1]} 33. Ra2 {[%clk
0:01:26.2]} 33... Bd6 {[%clk 0:00:10.4]} 34. a7 {[%clk 0:01:23.1]} 34... Bc7
{[%clk 0:00:08.9]} 35. Nb6 {[%clk 0:01:15.8]} 35... Bxb6 {[%clk 0:00:09]} 36.
Rxb6 {[%clk 0:01:12.2]} 36... Rcc8 {[%clk 0:00:08.8]} 37. Rb7 {[%clk 0:01:10.1]}
37... Kg7 {[%clk 0:00:09.4]} 38. Kg2 {[%clk 0:01:10.3]} 38... Kf6 {[%clk
0:00:09.8]} 39. Rd7 {[%clk 0:01:04.4]} 39... Rc4 {[%clk 0:00:08.4]} 40. Rb2
{[%clk 0:01:03.1]} 40... Rcc8 {[%clk 0:00:06.6]} 41. Rbb7 {[%clk 0:01:03.2]}
41... Rf8 {[%clk 0:00:07.2]} 42. Kg3 {[%clk 0:01:01.8]} 42... Kg6 {[%clk
0:00:07.8]} 43. f4 {[%clk 0:01:00]} 43... Kf6 {[%clk 0:00:07.8]} 44. h4 {[%clk
0:00:59.4]} 44... Kg6 {[%clk 0:00:07.1]} 45. h5+ {[%clk 0:00:53]} 45... Kf6
{[%clk 0:00:07.2]} 46. Kf3 {[%clk 0:00:53.7]} 46... gxf4 {[%clk 0:00:07.6]} 47.
Kxf4 {[%clk 0:00:51.8]} 47... Rac8 {[%clk 0:00:08.3]} 48. Rdc7 {[%clk
0:00:40.2]} 48... Ra8 {[%clk 0:00:08.3]} 49. Kg3 {[%clk 0:00:24.2]} 49... Rad8
{[%clk 0:00:08.9]} 50. Kf4 {[%clk 0:00:12.6]} 50... Ra8 {[%clk 0:00:09.5]} 51.
e4 {[%clk 0:00:13.3]} 51... dxe4 {[%clk 0:00:09.3]} 52. Kxe4 {[%clk 0:00:13.6]}
52... Rad8 {[%clk 0:00:09.7]} 53. Kd3 {[%clk 0:00:13.1]} 53... e5 {[%clk
0:00:09.1]} 54. Rc6+ {[%clk 0:00:06.8]} 54... Kg5 {[%clk 0:00:09.2]} 55. Rb5
{[%clk 0:00:05.6]} 55... Rxd4+ {[%clk 0:00:08.5]} 56. Ke3 {[%clk 0:00:06.2]}
56... Ra4 {[%clk 0:00:08.7]} 57. Rxe5+ {[%clk 0:00:05.4]} 57... Kxg4 {[%clk
0:00:09]} 58. Re4+ {[%clk 0:00:06.1]} 58... Rxe4+ {[%clk 0:00:09.1]} 59. Kxe4
{[%clk 0:00:07]} 59... Kxh5 {[%clk 0:00:08.1]} 60. Ra6 {[%clk 0:00:05.7]} 60...
Ra8 {[%clk 0:00:07.9]} 61. Kf5 {[%clk 0:00:05.8]} 61... Kh4 {[%clk 0:00:08.5]}
62. Ra4+ {[%clk 0:00:05.5]} 62... Kg3 {[%clk 0:00:08.6]} 63. Ra3+ {[%clk
0:00:05.7]} 63... Kf2 {[%clk 0:00:08.6]} 64. Kf6 {[%clk 0:00:03.8]} 64... h5
{[%clk 0:00:08.8]} 65. Kg5 {[%clk 0:00:02.2]} 65... Ke2 {[%clk 0:00:06.2]} 66.
Kxh5 {[%clk 0:00:02.6]} 66... f5 {[%clk 0:00:03.3]} 67. Kg5 {[%clk 0:00:02.6]}
67... f4 {[%clk 0:00:02]} 68. Kxf4 {[%clk 0:00:02.8]} 68... Kd2 {[%clk
0:00:02.9]} 69. Ke5 {[%clk 0:00:02.8]} 69... Rxa7 {[%clk 0:00:03.5]} 70. Rxa7
{[%clk 0:00:02.5]} 1-0